Cogmind - Beta 11.2 @@@ ROGUE MODE // 2023.01.04 @ 13:19:45 // Winter2022/Polymind Player: OJ Result: Destroyed by D-53 Grenadier with Mini Grenade Launcher Performance ------------- Evolutions (0) 0 Regions Visited (2) 400 Robots Destroyed (19) 95 Value Destroyed (436) 436 Prototype IDs (0) 0 Alien Tech Used (0) 0 Bonus (1080) 1080 TOTAL SCORE: 1871 Bonus ------- Polymind Skill 1080 Cogmind --------- Core Integrity 0/250 Matter 0/0 Energy 13/100 System Corruption 0% Temperature Cool (0) Movement Core (50) Location -10/Mines Parts ------- > --- POWER (1) -------- (None) > --- PROPULSION (2) --- (None) > --- UTILITY (1) ------ (None) > --- WEAPON (1) ------- (None) > --- INVENTORY (0) ---- (None) Peak State ------------ > --- POWER ------------ Light Nuclear Core > --- PROPULSION ------- Aluminum Leg Aluminum Leg > --- UTILITY ---------- Improved Heat Sink > --- WEAPON ----------- Particle Gun > --- INVENTORY -------- (None) [Rating: 10] Favorites ----------- Power Ion Engine Engine Ion Engine Power Core Light Nuclear Core Propulsion Aluminum Leg Leg Aluminum Leg Wheel Wheel Utility Heat Sink Device Heat Sink Processor Terrain Scan Processor Weapon Small Laser Energy Gun Small Laser Special Weapon Welding Torch Build | -11 -10 -10 ------- Run | Scr Mat Min Slots Evolved . | . . . Power . | . . . Propulsion . | . . . Utility . | . . . Weapon . | . . . Parts Attached . | . . . Power . | . . . Engine . | . . . Core . | . . . Reactor . | . . . Propulsion . | . . . Treads . | . . . Leg . | . . . Wheel . | . . . Hover . | . . . Flight . | . . . Utility . | . . . Device . | . . . Storage . | . . . Processor . | . . . Hackware . | . . . Protection . | . . . Artifact . | . . . Weapon . | . . . Energy Gun . | . . . Energy Cannon . | . . . Ballistic Gun . | . . . Ballistic Cannon . | . . . Launcher . | . . . Special Weapon . | . . . Impact Weapon . | . . . Slashing Weapon . | . . . Piercing Weapon . | . . . Special Melee Weapon . | . . . Unidentified Prototypes . | . . . Parts Lost 7 | . 4 3 Power . | . . . Propulsion 3 | . 1 2 Utility 1 | . 1 . Weapon 3 | . 2 1 Highest Loss Streak 3 | . 2 3 To Critical Strikes . | . . . Average Slot Usage (%) 95 | . 95 100 Engine 10 | . 9 20 Core 8 | . 8 . Leg 36 | . 36 40 Wheel 1 | . 1 . Device 19 | . 19 20 Energy Gun 18 | . 18 20 Naked Turns 73 | . 72 1 Heaviest Build 9 | . 9 7 Greatest Support 20 | 3 20 20 Greatest Overweight (x) . | . . . Average Overweight (x) . | . . . Largest Inventory Capacity 1 | . 1 1 Average Capacity . | . . . Most Carried . | . . . Average Carried . | . . . Final Capacity 1 | . 1 . Final Carried . | . . . Class Distribution -------------------- 91% | Grunt 4% | Cogmind 3% | Builder Dominant Class ---------------- Grunt | -10/Materials Grunt | -10/Mines Resources | -11 -10 -10 ----------- Run | Scr Mat Min Matter Collected . | . . . Remotely . | . . . Salvage Created 490 | . 471 19 Parts 37 | . 33 4 Haulers Intercepted . | . . . Recyclers Shooed 1 | . 1 . Parts Field Recycled . | . . . Retrieved Matter . | . . . Parts Self-Destructed . | . . . Prevented . | . . . Kills | -11 -10 -10 ------- Run | Scr Mat Min Combat Hostiles Destroyed 12 | . 10 2 Guns 12 | . 10 2 Classes Destroyed 7 | . 6 1 Worker 3 | . 3 . Builder 1 | . 1 . Tunneler 1 | . 1 . Recycler 1 | . 1 . Watcher 1 | . 1 . Swarmer 2 | . . 2 Grunt 10 | . 10 . Best Kill Streak 2 | . 2 2 Combat Bots Only 2 | . 2 2 Max Kills in Single Turn 1 | . 1 1 Gunslinging . | . . . Exploded . | . . . Melee . | . . . Uniques/NPCs Destroyed . | . . . Combat | -11 -10 -10 -------- Run | Scr Mat Min Damage Taken 1150 | . 756 394 Core 282 | . 167 115 Absorbed by Shields . | . . . Core Remaining (%) 100 | 100 . . Volleys Fired 153 | . 142 11 Largest 1 | . 1 1 Hottest 65 | . 65 40 Shots Fired 153 | . 142 11 Gun 153 | . 142 11 Cannon . | . . . Launcher . | . . . Special . | . . . Kinetic . | . . . Thermal 153 | . 142 11 Explosive . | . . . Electromagnetic . | . . . Robot Hit Streak 17 | . 17 7 Robot Miss Streak 5 | . 5 3 Penetration Max . | . . . Secondary Targets . | . . . Shots Hit Robots 97 | . 90 7 Core Hits 30 | . 27 3 Critical Kills . | . . . Critical Parts Destroyed . | . . . Critical Strikes 2 | . 2 . Burn 2 | . 2 . Melee Attacks . | . . . Impact . | . . . Slashing . | . . . Piercing . | . . . Sneak Attacks . | . . . Combat Hostiles . | . . . Follow-up Attacks . | . . . Damage Inflicted 1284 | . 1153 131 Guns 1284 | . 1153 131 Cannons . | . . . Explosions . | . . . Melee . | . . . Ramming . | . . . Kinetic . | . . . Thermal 1284 | . 1153 131 Explosive . | . . . Electromagnetic . | . . . Impact . | . . . Slashing . | . . . Piercing . | . . . Highest Corruption . | . . . Average Corruption . | . . . Corruption Purged . | . . . Corruption Blocked . | . . . Overload Shots . | . . . Overflow Damage . | . . . Projectiles . | . . . Explosions . | . . . Melee . | . . . Knockbacks . | . . . Impact . | . . . Kinetic . | . . . Secondary . | . . . Self-Inflicted Damage . | . . . Shots . | . . . Rammed . | . . . Targets Rammed . | . . . Kicked . | . . . Crushed . | . . . Highest Temperature 127 | . 127 . Average Temperature 27 | . 27 . Received Heat Transfer 432 | . 432 . Siege Activations . | . . . Robots Corrupted . | . . . Combat Hostiles . | . . . Parts Fried . | . . . Impact Corruptions . | . . . Robots Melted . | . . . Combat Hostiles . | . . . Parts Melted 2 | . 2 . Heat Transferred 3126 | . 2851 275 Parts Sabotaged . | . . . Parts Stolen . | . . . Parts Stripped . | . . . Power Chain Reactions . | . . . Missiles Intercepted . | . . . Alert | -11 -10 -10 ------- Run | Scr Mat Min Peak Influence 155 | . 155 51 Initial 11 | . . 11 Average 67 | . 68 44 Maximum Alert Level . | . . . Low Security (%) 100 | 100 100 100 Level 1 . | . . . Level 2 . | . . . Level 3 . | . . . Level 4 . | . . . Level 5 . | . . . High Security . | . . . Max Security . | . . . Squads Dispatched 3 | . 3 . Investigation 2 | . 2 . Extermination . | . . . Reinforcement 1 | . 1 . Assault . | . . . Garrison . | . . . Intercept . | . . . Searches Triggered . | . . . Construction Impeded . | . . . Haulers Reinforced . | . . . Active Scanning Responses . | . . . Cargo Convoy Interrupts . | . . . Stealth | -11 -10 -10 --------- Run | Scr Mat Min Distress Signals 2 | . 2 . Communications Jammed . | . . . Distress Signals . | . . . Times Spotted 40 | . 34 6 Peak Tracking Total 7 | . 7 3 Tactical Retreats 2 | . 2 . Traps | -11 -10 -10 ------- Run | Scr Mat Min Traps Triggered 1 | . 1 . Indirectly . | . . . Trap Hack Attempts . | . . . Triggered . | . . . Disarmed . | . . . Reprogrammed . | . . . Reused . | . . . Traps Extracted . | . . . Installed . | . . . Triggered . | . . . Machines | -11 -10 -10 ---------- Run | Scr Mat Min Machines Disabled . | . . . Max in Single Turn . | . . . Machines Sabotaged . | . . . Garrisons Compromised . | . . . Overloaded Fab Kills . | . . . Hacking | -11 -10 -10 --------- Run | Scr Mat Min Machines Accessed 7 | . 7 . Terminals 6 | . 6 . Fabricators . | . . . Repair Stations 1 | . 1 . Recycling Units . | . . . Scanalyzers . | . . . Garrison Access . | . . . Total Hacks 26 | . 26 . Successful 6 | . 6 . Failed 20 | . 20 . Catastrophic 4 | . 4 . Database Lockouts . | . . . Manual 20 | . 20 . Terminals 23 | . 23 . Fabricators . | . . . Repair Stations 3 | . 3 . Recycling Units . | . . . Scanalyzers . | . . . Garrison Access . | . . . Terminal Hacks 5 | . 5 . Robot Analysis 1 | . 1 . Alert Level 1 | . 1 . Locate Traps 1 | . 1 . Reprogram Traps 1 | . 1 . Transport Status 1 | . 1 . Fabricator Hacks . | . . . Repair Station Hacks 1 | . 1 . Scan Component 1 | . 1 . Recycling Unit Hacks . | . . . Scanalyzer . | . . . Garrison Access Hacks . | . . . Unauthorized Hacks . | . . . Terminals . | . . . Fabricators . | . . . Repair Stations . | . . . Recycling Units . | . . . Scanalyzers . | . . . Garrison Access . | . . . Data Cores Recovered . | . . . Used . | . . . Hacking Detections 7 | . 7 . Full Trace Events 6 | . 6 . Feedback Events . | . . . Feedback Blocked . | . . . Robot Schematics Acquired . | . . . Robots Built . | . . . Authchips . | . . . Time . | . . . Total Robot Build Rating . | . . . Part Schematics Acquired . | . . . Parts Built . | . . . Authchips . | . . . Time . | . . . Total Part Build Rating . | . . . Parts Repaired . | . . . Time . | . . . Parts Recycled . | . . . Recycled Matter . | . . . Retrieved Matter . | . . . Retrieved Components . | . . . Parts Scanalyzed . | . . . Part Schematics Acquired . | . . . Parts Damaged . | . . . Bothacking | -11 -10 -10 ------------ Run | Scr Mat Min Used RIF Installer . | . . . Robots Hacked 4 | . 4 . Non-combat 1 | . 1 . Combat 3 | . 3 . Robot Hacks Applied 4 | . 4 . map_walls 1 | . 1 . find_shortcuts 3 | . 3 . Relay Couplers Released . | . . . Fabnet Peak Effective % . | . . . Robots Rewired . | . . . Allies Hacked . | . . . Hacks Repelled . | . . . Allies | -11 -10 -10 -------- Run | Scr Mat Min Total Allies . | . . . Largest Group . | . . . Highest-Rated Group . | . . . Highest-Rated Ally . | . . . Total Orders . | . . . Ally Attacks . | . . . Total Damage . | . . . Kills . | . . . Allies Corrupted . | . . . Allies Melted . | . . . Intel | -11 -10 -10 ------- Run | Scr Mat Min Robot Analysis Total 4 | . 4 . Derelict Logs Recovered 1 | . . 1 Drone Launches . | . . . Drone Recoveries . | . . . Exploration | -11 -10 -10 ------------- Run | Scr Mat Min Turns Passed 1633 | 9 1559 65 Spaces Moved 768 | 19 712 37 Core 163 | 19 142 2 Treads . | . . . Legs 527 | . 492 35 Wheels 78 | . 78 . Hover . | . . . Flight . | . . . Fastest Speed 50 | 50 50 50 Average Speed 101 | 50 101 116 Slowest Speed 120 | 50 120 120 Overloaded Moves . | . . . Propulsion Burnouts . | . . . Robots Hopped . | . . . Cave-ins Triggered . | . . . Exploration Rate (%) 36 | 4 90 14 Regions Visited 2 Branch Regions 1 Pre-discovered Areas 1 | . . 1 Known Exits Taken . | . . . Unknown Exits Taken 2 | 1 1 . Scrap Searched . | . . . Spaces Dug . | . . . Terrain Destroyed . | . . . Melee . | . . . Projectile . | . . . AOE . | . . . Terrain Rammed . | . . . Walls Destroyed . | . . . Machines Disabled . | . . . Actions | -11 -10 -10 --------- Run | Scr Mat Min Total 1471 | 18 1405 48 Wait 552 | . 552 . Move 766 | 18 711 37 Hop . | . . . Pick Up . | . . . Fast Attach . | . . . Attach . | . . . Detach . | . . . Swap . | . . . Drop . | . . . Fire 153 | . 142 11 Melee . | . . . Ram . | . . . Kick . | . . . Crush . | . . . Escape Stasis . | . . . Rewire . | . . . Trap . | . . . Miscellaneous . | . . . Route ------- -11/Scrapyard -10/Materials (discovered 4 exits: [*Mat x2] / [*Min x2]) -10/Mines History --------- Turn | Location | Event 3 | -11/Scrapyard | Discovered new exit (range 14) 10 | -11/Scrapyard | Entered Materials 101 | -10/Materials | Discovered new exit (range 8) 350 | -10/Materials | Discovered new exit (range 11) 516 | -10/Materials | Discovered new exit (range 14) 714 | -10/Materials | Discovered new exit (range 8) 817 | -10/Materials | Core integrity fell below 50% 1569 | -10/Materials | Entered Mines 1601 | -10/Mines | Learned location of Zion (-6) 1619 | -10/Mines | Assembled infested the area 1633 | -10/Mines | Core integrity fell below 20% 1634 | -10/Mines | Destroyed by D-53 Grenadier with Mini Grenade Launcher Last Messages --------------- 01514_ R-06 Scavenger destroyed. 01515_ K-01 Serf collects debris. 01516_ K-01 Serf destroyed. 01545_ K-01 Serf collects debris. 01549_ K-01 Serf destroyed. 01558_ K-01 Serf collects debris. LOCATION=UNKNOWN GOAL=ESCAPE 01572_ S-10 Pest destroyed. 01585_ Acquired 3 Protomatter. 01588_ Acquired 5 Protomatter. 01601_ Acquired derelict log, extracted data. World map updated: -6/Zion. 01619_ ALERT: Infestation in the mines, dispatching Demolisher response squad. 01624_ C-30 ARC bursts open, deploying its payload. 01624_ D-53 Grenadier unfolds itself. 01630_ Aluminum Leg destroyed. 01632_ Sml. Laser destroyed. 01633_ Released control of G-34 Mercenary. Map ----- +----------------------------------------------------+ | | | | | | | | | | | | | | | | | | | | | ?????????????????????????????????????????????????? | | ?????????????????????????????????????????????????? | | ??????????????????????????##?????????????????????? | | ?????????????????????????? ?????????????????????? | | ?????????????????????????? ?????????????????????? | | ?????????????????????????? ?????????????????????? | | ?????????????????????????? #????????????????????? | | ?????????????????????????? ?????????????????????? | | ?????????????????????????? #????????????????????? | | ????????????????????????##% #?? ?????????????????? | | ???????????????????###?## #?????????????????? | | ??????????????????## ##d """ #?????????????????? | | ??????????????????# d""" #?????????????????? | | ???????????????# ## """ #??????????????????? | | ???????????????# """ ##?????????????????? | | ???????????????????# @ #######???????????? | | ?????????????????### ????????? | | ?????????????????# g u u r ????????? | | ?????????????????# ###### ?????????? | | ????????????????## #???????????????? | | ????????????##### #####???????????????? | | ????????????# ####???????????????????? | | ????????????# ##??????????????????????? | | ????######### ### #???????????????????????? | | ????# #?### #####???????????????????????? | | ????# #########???###????????????????????????????? | | ????# #??????????????????????????????????????????? | | ????# #??????????????????????????????????????????? | | ????# #??????????????????????????????????????????? | | ????# #??????????????????????????????????????????? | | ????# #??????????????????????????????????????????? | | ????# #??????????????????????????????????????????? | | ????# #??????????????????????????????????????????? | | ##### ####???????????????????????????????????????? | | #???????????????????????????????????????? | | [ #???????????????????????????????????????? | | = [ """ #???????????????????????????????????????? | | %=""" ?????????????????????????????????????? | | = * """ ### #???????????????????????????????????? | | #???????????????????????????????????????? | +----------------------------------------------------+ Best States ------------- Heat Dissipation 40 Energy Generation 19 Energy Capacity 200 Sight Range 16 Terrain Scan Range 14 Terrain Scan Density 85 Evasion (%) 55 Item Schematics ----------------- None Robot Schematics ------------------ None Fabricated ------------ Nothing Alien Tech Used ----------------- None Achievements -------------- None Challenges ------------ None Polymind | -11 -10 -10 ---------- Run | Scr Mat Min Hosts 4 | . 4 . Combat Hostiles 3 | . 3 . Allies . | . . . Unique Host Classes 2 | . 2 . Average Host Suspicion 96 | . 96 98 Unsuspicious Activity 2 | . 2 . Returns to Shadow . | . . . Fuzzy Dispatches . | . . . Protomatter Created 133 | . 82 51 Used 80 | . 80 . Decayed 29 | . . 29 Highest Spend 30 | . 30 . Top 5 Hosts by Kills: G-47 Trooper (-10/Materials: 5) G-34 Mercenary (-10/Materials: 4) G-47 Trooper (-10/Materials: 3) Game ------ Seed PointSapperSlayer Manual? 0 Play Time 00:09:49 Cumulative 79.8 hours Start 2023.01.04 @ 13:09:53 End 2023.01.04 @ 13:19:45 Sessions 1 Manual Loads 0 Difficulty Rogue Special Mode Winter2022/Polymind Game No. 61 Rogue 61 Adventurer 0 Explorer 0 Win Type - Total 0 Types 0/0/0/0/0/0/0/0/0 Lore% 38 Gallery% 56 Achievement% 47 Wizard Run 0 Options --------- ASCII 0 Keyboard 1 Movement Numpad Keybinds 0 Fullscreen 1 Font 18/SmallcapsGlow Map View 76x50 Tactical HUD 1 Map Filters NONE Filters NONE Steam 1 RUN: 5056e5b4-2f4a-43da-9745-590d6fbe2bf3